[Event "Titled Tuesday Blitz April 12 Early 2022"]
[White "Padmini, Rout"]
[Black "Adelman, Charles"]
[WhiteFideId "5029295"]
[BlackFideId "2003597"]
[WhiteElo "2181"]
[BlackElo "2371"]
[Result "0-1"]
[Round "09"]
[TimeControl "180+1"]
[Date "2022.04.13"]
[WhiteClock "0:00:23"]
[BlackClock "0:01:38"]

1. Nf3 {[%clk 0:02:57]}  Nf6 {[%clk 0:02:59]} 2. g3 {[%clk 0:02:57]}  d5 {[%clk 0:02:59]} 3. Bg2 {[%clk 0:02:57]}  Bf5 {[%clk 0:02:59]} 4. O-O {[%clk 0:02:57]}  c6 {[%clk 0:02:59]} 5. d3 {[%clk 0:02:57]}  e6 {[%clk 0:02:59]} 6. Nh4 {[%clk 0:02:55]}  Bg4 {[%clk 0:02:59]} 7. h3 {[%clk 0:02:55]}  Bh5 {[%clk 0:02:59]} 8. g4 {[%clk 0:02:55]}  Nfd7 {[%clk 0:02:59]} 9. Nf3 {[%clk 0:02:46]}  Bg6 {[%clk 0:02:59]} 10. Nc3 {[%clk 0:02:40]}  Be7 {[%clk 0:02:54]} 11. e4 {[%clk 0:02:39]}  dxe4 {[%clk 0:02:47]} 12. dxe4 {[%clk 0:02:38]}  O-O {[%clk 0:02:47]} 13. Qe2 {[%clk 0:02:35]}  Qc7 {[%clk 0:02:43]} 14. Be3 {[%clk 0:02:20]}  Na6 {[%clk 0:02:33]} 15. Nd2 {[%clk 0:01:59]}  e5 {[%clk 0:02:29]} 16. Rad1 {[%clk 0:01:25]}  Bc5 {[%clk 0:02:26]} 17. Nf3 {[%clk 0:01:19]}  Bxe3 {[%clk 0:02:22]} 18. Qxe3 {[%clk 0:01:19]}  Rad8 {[%clk 0:02:15]} 19. Qxa7 {[%clk 0:01:15]}  Nb6 {[%clk 0:02:15]} 20. Rxd8 {[%clk 0:01:03]}  Rxd8 {[%clk 0:02:14]} 21. Nxe5 {[%clk 0:01:02]}  Ra8 {[%clk 0:02:14]} 22. Qxa8+ {[%clk 0:01:01]}  Nxa8 {[%clk 0:02:13]} 23. Nxg6 {[%clk 0:00:59]}  hxg6 {[%clk 0:02:12]} 24. Rd1 {[%clk 0:00:59]}  Nb6 {[%clk 0:02:08]} 25. Bf1 {[%clk 0:00:52]}  Nc5 {[%clk 0:02:03]} 26. f3 {[%clk 0:00:42]}  Kf8 {[%clk 0:02:03]} 27. Kf2 {[%clk 0:00:41]}  Ke7 {[%clk 0:02:02]} 28. Ke3 {[%clk 0:00:39]}  Nca4 {[%clk 0:02:00]} 29. Nxa4 {[%clk 0:00:38]}  Nxa4 {[%clk 0:02:00]} 30. b3 {[%clk 0:00:38]}  Qb6+ {[%clk 0:01:57]} 31. Kd2 {[%clk 0:00:33]}  Qf2+ {[%clk 0:01:53]} 32. Be2 {[%clk 0:00:31]}  Nc5 {[%clk 0:01:46]} 33. c3 {[%clk 0:00:29]}  Ne6 {[%clk 0:01:45]} 34. Rf1 {[%clk 0:00:28]}  Qg2 {[%clk 0:01:41]} 35. f4 {[%clk 0:00:27]}  g5 {[%clk 0:01:39]} 36. fxg5 {[%clk 0:00:23]}  Nxg5 {[%clk 0:01:38]} 0-1


[Site "https://www.chess.com"]

[Event "Titled Tuesday Blitz April 12 Early 2022"]
[White "Papp, Levente"]
[Black "Omariev, Maksim"]
[WhiteFideId "751243"]
[BlackFideId "4193423"]
[WhiteElo "2308"]
[BlackElo "2488"]
[Result "0-1"]
[Round "09"]
[TimeControl "180+1"]
[Date "2022.04.13"]
[WhiteClock "0:00:13"]
[BlackClock "0:00:55"]

1. c4 {[%clk 0:02:56]}  h5 {[%clk 0:03:00]} 2. d4 {[%clk 0:02:55]}  h4 {[%clk 0:03:01]} 3. Nc3 {[%clk 0:02:54]}  c6 {[%clk 0:03:00]} 4. e4 {[%clk 0:02:54]}  d6 {[%clk 0:03:00]} 5. h3 {[%clk 0:02:48]}  e5 {[%clk 0:03:01]} 6. Nf3 {[%clk 0:02:36]}  Nd7 {[%clk 0:03:00]} 7. Be2 {[%clk 0:02:30]}  Be7 {[%clk 0:02:59]} 8. Be3 {[%clk 0:02:26]}  Ngf6 {[%clk 0:02:58]} 9. Qd2 {[%clk 0:02:20]}  a6 {[%clk 0:02:52]} 10. a4 {[%clk 0:02:11]}  Nh5 {[%clk 0:02:36]} 11. a5 {[%clk 0:01:59]}  Bf6 {[%clk 0:02:31]} 12. dxe5 {[%clk 0:01:41]}  dxe5 {[%clk 0:02:23]} 13. Na4 {[%clk 0:01:14]}  Qe7 {[%clk 0:02:19]} 14. Rd1 {[%clk 0:01:01]}  Nf4 {[%clk 0:02:12]} 15. Kf1 {[%clk 0:00:58]}  Ne6 {[%clk 0:02:03]} 16. b4 {[%clk 0:00:57]}  O-O {[%clk 0:01:58]} 17. Nb6 {[%clk 0:00:45]}  Nxb6 {[%clk 0:01:43]} 18. Bxb6 {[%clk 0:00:46]}  Nf4 {[%clk 0:01:24]} 19. Bc5 {[%clk 0:00:45]}  Qe8 {[%clk 0:01:17]} 20. Bxf8 {[%clk 0:00:45]}  Qxf8 {[%clk 0:01:18]} 21. g3 {[%clk 0:00:36]}  Bxh3+ {[%clk 0:01:09]} 22. Rxh3 {[%clk 0:00:31]}  Nxh3 {[%clk 0:01:09]} 23. Kg2 {[%clk 0:00:31]}  Rd8 {[%clk 0:01:03]} 24. Qe3 {[%clk 0:00:31]}  Rxd1 {[%clk 0:01:02]} 25. Bxd1 {[%clk 0:00:32]}  Qc8 {[%clk 0:01:01]} 26. Be2 {[%clk 0:00:20]}  hxg3 {[%clk 0:01:01]} 27. Kxg3 {[%clk 0:00:15]}  Nf4 {[%clk 0:00:59]} 28. Bf1 {[%clk 0:00:15]}  Qe6 {[%clk 0:00:55]} 29. Qe2 {[%clk 0:00:13]} 0-1


[Site "https://www.chess.com"]

[Event "Titled Tuesday Blitz April 12 Early 2022"]
[White "Pesotskiy, Mikhail"]
[Black "Tasev, Dejan"]
[WhiteFideId "34164453"]
[BlackFideId "936618"]
[WhiteElo "2010"]
[BlackElo "2253"]
[Result "1-0"]
[Round "09"]
[TimeControl "180+1"]
[Date "2022.04.13"]
[WhiteClock "0:00:17"]
[BlackClock "0:00:33"]

1. d4 {[%clk 0:02:52]}  Nf6 {[%clk 0:02:59]} 2. c4 {[%clk 0:02:52]}  g6 {[%clk 0:02:57]} 3. Nc3 {[%clk 0:02:53]}  Bg7 {[%clk 0:02:57]} 4. e4 {[%clk 0:02:53]}  d6 {[%clk 0:02:56]} 5. f3 {[%clk 0:02:53]}  O-O {[%clk 0:02:56]} 6. Be3 {[%clk 0:02:54]}  c5 {[%clk 0:02:57]} 7. dxc5 {[%clk 0:02:55]}  dxc5 {[%clk 0:02:57]} 8. Qxd8 {[%clk 0:02:56]}  Rxd8 {[%clk 0:02:57]} 9. Bxc5 {[%clk 0:02:57]}  Nc6 {[%clk 0:02:57]} 10. Nge2 {[%clk 0:02:56]}  Nd7 {[%clk 0:02:54]} 11. Be3 {[%clk 0:02:56]}  Nde5 {[%clk 0:02:53]} 12. Nf4 {[%clk 0:02:56]}  e6 {[%clk 0:02:46]} 13. Rc1 {[%clk 0:02:50]}  b6 {[%clk 0:02:38]} 14. Be2 {[%clk 0:02:42]}  Ba6 {[%clk 0:02:37]} 15. b3 {[%clk 0:02:42]}  Nb4 {[%clk 0:02:27]} 16. O-O {[%clk 0:01:37]}  Ned3 {[%clk 0:02:22]} 17. Nxd3 {[%clk 0:01:26]}  Nxd3 {[%clk 0:02:21]} 18. Rc2 {[%clk 0:01:26]}  Nb4 {[%clk 0:02:12]} 19. Rcc1 {[%clk 0:01:25]}  Rd7 {[%clk 0:01:46]} 20. a3 {[%clk 0:01:17]}  Nc6 {[%clk 0:01:39]} 21. Nb5 {[%clk 0:01:05]}  Bxb5 {[%clk 0:01:31]} 22. cxb5 {[%clk 0:01:05]}  Nd4 {[%clk 0:01:32]} 23. Bc4 {[%clk 0:01:06]}  Rad8 {[%clk 0:01:29]} 24. Kf2 {[%clk 0:01:02]}  h6 {[%clk 0:01:28]} 25. Rfd1 {[%clk 0:00:53]}  Bf8 {[%clk 0:01:27]} 26. b4 {[%clk 0:00:46]}  g5 {[%clk 0:01:13]} 27. Rd3 {[%clk 0:00:42]}  e5 {[%clk 0:01:08]} 28. Bd5 {[%clk 0:00:41]}  Bg7 {[%clk 0:01:04]} 29. Rdc3 {[%clk 0:00:41]}  Bf6 {[%clk 0:01:03]} 30. a4 {[%clk 0:00:40]}  Kg7 {[%clk 0:01:00]} 31. Rc7 {[%clk 0:00:38]}  Kf8 {[%clk 0:00:55]} 32. a5 {[%clk 0:00:36]}  Rxc7 {[%clk 0:00:47]} 33. Rxc7 {[%clk 0:00:36]}  Nxb5 {[%clk 0:00:47]} 34. Rb7 {[%clk 0:00:34]}  Nd6 {[%clk 0:00:45]} 35. Rxa7 {[%clk 0:00:33]}  bxa5 {[%clk 0:00:46]} 36. bxa5 {[%clk 0:00:34]}  Rc8 {[%clk 0:00:41]} 37. a6 {[%clk 0:00:32]}  Rc2+ {[%clk 0:00:39]} 38. Kf1 {[%clk 0:00:21]}  Be7 {[%clk 0:00:38]} 39. Rxe7 {[%clk 0:00:18]}  Kxe7 {[%clk 0:00:38]} 40. a7 {[%clk 0:00:18]}  Rc3 {[%clk 0:00:33]} 41. a8=Q {[%clk 0:00:17]} 1-0


[Site "https://www.chess.com"]

[Event "Titled Tuesday Blitz April 12 Early 2022"]
[White "Pichot, Alan"]
[Black "Esipenko, Andrey"]
[WhiteFideId "110973"]
[BlackFideId "24175439"]
[WhiteElo "2579"]
[BlackElo "2617"]
[Result "0-1"]
[Round "09"]
[TimeControl "180+1"]
[Date "2022.04.12"]
[WhiteClock "0:00:16"]
[BlackClock "0:00:51"]

1. e4 {[%clk 0:02:59]}  e5 {[%clk 0:02:59]} 2. Nf3 {[%clk 0:02:59]}  Nc6 {[%clk 0:02:59]} 3. Bb5 {[%clk 0:02:59]}  Nf6 {[%clk 0:02:57]} 4. d3 {[%clk 0:02:57]}  Bc5 {[%clk 0:02:56]} 5. c3 {[%clk 0:02:57]}  O-O {[%clk 0:02:52]} 6. O-O {[%clk 0:02:57]}  d6 {[%clk 0:02:52]} 7. Bg5 {[%clk 0:02:57]}  h6 {[%clk 0:02:50]} 8. Bh4 {[%clk 0:02:57]}  a6 {[%clk 0:02:50]} 9. Ba4 {[%clk 0:02:57]}  Ba7 {[%clk 0:02:49]} 10. Nbd2 {[%clk 0:02:56]}  g5 {[%clk 0:02:46]} 11. Bg3 {[%clk 0:02:56]}  Nh7 {[%clk 0:02:42]} 12. Kh1 {[%clk 0:02:45]}  h5 {[%clk 0:02:34]} 13. h3 {[%clk 0:02:45]}  Kh8 {[%clk 0:02:29]} 14. d4 {[%clk 0:02:30]}  h4 {[%clk 0:02:16]} 15. Bh2 {[%clk 0:02:29]}  g4 {[%clk 0:02:17]} 16. hxg4 {[%clk 0:02:25]}  Bxg4 {[%clk 0:02:18]} 17. Bxc6 {[%clk 0:02:25]}  bxc6 {[%clk 0:02:18]} 18. dxe5 {[%clk 0:02:26]}  h3 {[%clk 0:02:17]} 19. gxh3 {[%clk 0:01:55]}  Bxh3 {[%clk 0:02:16]} 20. Rg1 {[%clk 0:01:55]}  Bxf2 {[%clk 0:02:11]} 21. exd6 {[%clk 0:01:56]}  cxd6 {[%clk 0:02:11]} 22. Qe2 {[%clk 0:01:40]}  Bxg1 {[%clk 0:02:07]} 23. Rxg1 {[%clk 0:01:41]}  Rg8 {[%clk 0:02:06]} 24. Rxg8+ {[%clk 0:01:36]}  Qxg8 {[%clk 0:02:07]} 25. Bxd6 {[%clk 0:01:36]}  Re8 {[%clk 0:02:07]} 26. Be5+ {[%clk 0:01:28]}  f6 {[%clk 0:02:07]} 27. Bd4 {[%clk 0:01:29]}  Qxa2 {[%clk 0:01:56]} 28. Qh2 {[%clk 0:01:16]}  Qe6 {[%clk 0:01:54]} 29. Qf4 {[%clk 0:01:00]}  Rg8 {[%clk 0:01:48]} 30. Qh4 {[%clk 0:00:45]}  Bg2+ {[%clk 0:01:25]} 31. Kh2 {[%clk 0:00:45]}  Rg4 {[%clk 0:01:26]} 32. Qh6 {[%clk 0:00:34]}  Bxf3 {[%clk 0:01:26]} 33. Nxf3 {[%clk 0:00:34]}  Qxe4 {[%clk 0:01:27]} 34. Qh3 {[%clk 0:00:16]}  Kg8 {[%clk 0:01:10]} 35. Qf1 {[%clk 0:00:15]}  Ng5 {[%clk 0:01:03]} 36. Nxg5 {[%clk 0:00:15]}  fxg5 {[%clk 0:00:56]} 37. Qc4+ {[%clk 0:00:15]}  Qd5 {[%clk 0:00:56]} 38. Qe2 {[%clk 0:00:15]}  Qd6+ {[%clk 0:00:52]} 39. Be5 {[%clk 0:00:16]}  Qh6# {[%clk 0:00:51]} 0-1


[Site "https://www.chess.com"]

[Event "Titled Tuesday Blitz April 12 Early 2022"]
[White "Piesik, Piotr"]
[Black "Zia, Tahsin Tajwar"]
[WhiteFideId "1136194"]
[BlackFideId "10211888"]
[WhiteElo "2190"]
[BlackElo "1800"]
[Result "1/2-1/2"]
[Round "09"]
[TimeControl "180+1"]
[Date "2022.04.13"]
[WhiteClock "0:01:00"]
[BlackClock "0:00:50"]

1. Nf3 {[%clk 0:03:00]}  d5 {[%clk 0:02:54]} 2. g3 {[%clk 0:03:01]}  Nd7 {[%clk 0:02:54]} 3. Bg2 {[%clk 0:03:01]}  e5 {[%clk 0:02:54]} 4. d3 {[%clk 0:03:01]}  Bd6 {[%clk 0:02:54]} 5. O-O {[%clk 0:03:02]}  Ngf6 {[%clk 0:02:54]} 6. Nbd2 {[%clk 0:03:02]}  O-O {[%clk 0:02:55]} 7. e4 {[%clk 0:03:02]}  c6 {[%clk 0:02:55]} 8. Qe2 {[%clk 0:03:02]}  Re8 {[%clk 0:02:56]} 9. Nb3 {[%clk 0:03:01]}  a5 {[%clk 0:02:56]} 10. a4 {[%clk 0:03:02]}  Qc7 {[%clk 0:02:51]} 11. Bd2 {[%clk 0:03:01]}  b6 {[%clk 0:02:51]} 12. Rfd1 {[%clk 0:03:00]}  Ba6 {[%clk 0:02:50]} 13. Qe1 {[%clk 0:03:00]}  dxe4 {[%clk 0:02:49]} 14. dxe4 {[%clk 0:03:00]}  Nc5 {[%clk 0:02:49]} 15. Nxc5 {[%clk 0:03:00]}  Bxc5 {[%clk 0:02:50]} 16. Bh3 {[%clk 0:02:53]}  Rad8 {[%clk 0:02:48]} 17. Bc3 {[%clk 0:02:49]}  Bd4 {[%clk 0:02:33]} 18. Nxd4 {[%clk 0:02:33]}  exd4 {[%clk 0:02:34]} 19. Rxd4 {[%clk 0:02:33]}  Rxd4 {[%clk 0:02:31]} 20. Bxd4 {[%clk 0:02:34]}  Rxe4 {[%clk 0:02:30]} 21. Qc3 {[%clk 0:02:26]}  Nd5 {[%clk 0:02:19]} 22. Qd2 {[%clk 0:02:17]}  Qe7 {[%clk 0:02:01]} 23. Bf1 {[%clk 0:01:57]}  Bxf1 {[%clk 0:01:59]} 24. Kxf1 {[%clk 0:01:57]}  Qe6 {[%clk 0:01:48]} 25. Rd1 {[%clk 0:01:55]}  Qh3+ {[%clk 0:01:26]} 26. Kg1 {[%clk 0:01:54]}  Nf4 {[%clk 0:01:26]} 27. gxf4 {[%clk 0:01:30]}  Qg4+ {[%clk 0:01:23]} 28. Kf1 {[%clk 0:01:29]}  Qh3+ {[%clk 0:01:15]} 29. Kg1 {[%clk 0:01:29]}  Re6 {[%clk 0:01:03]} 30. f5 {[%clk 0:01:03]}  Qg4+ {[%clk 0:00:59]} 31. Kf1 {[%clk 0:01:00]}  Qh3+ {[%clk 0:00:59]} 32. Kg1 {[%clk 0:01:00]}  Qg4+ {[%clk 0:00:51]} 33. Kf1 {[%clk 0:01:00]}  Qh3+ {[%clk 0:00:50]} 34. Kg1 {[%clk 0:01:00]} 1/2-1/2


[Site "https://www.chess.com"]

[Event "Titled Tuesday Blitz April 12 Early 2022"]
[White "Plazuelo Pascual, Juan"]
[Black "Samant Aditya S"]
[WhiteFideId "32059566"]
[BlackFideId "35080580"]
[WhiteElo "2359"]
[BlackElo "1916"]
[Result "1-0"]
[Round "09"]
[TimeControl "180+1"]
[Date "2022.04.13"]
[WhiteClock "0:00:34"]
[BlackClock "0:00:11"]

1. e4 {[%clk 0:03:00]}  c5 {[%clk 0:02:57]} 2. Nf3 {[%clk 0:03:01]}  d6 {[%clk 0:02:58]} 3. d4 {[%clk 0:03:01]}  cxd4 {[%clk 0:02:58]} 4. Nxd4 {[%clk 0:03:02]}  Nf6 {[%clk 0:02:58]} 5. Nc3 {[%clk 0:03:02]}  Nc6 {[%clk 0:02:59]} 6. Bg5 {[%clk 0:03:02]}  e6 {[%clk 0:03:00]} 7. Qd3 {[%clk 0:03:02]}  Bd7 {[%clk 0:02:59]} 8. Ndb5 {[%clk 0:02:58]}  Nb4 {[%clk 0:02:58]} 9. Qd1 {[%clk 0:02:58]}  a6 {[%clk 0:02:57]} 10. Bxf6 {[%clk 0:02:55]}  gxf6 {[%clk 0:02:58]} 11. a3 {[%clk 0:02:56]}  axb5 {[%clk 0:02:52]} 12. axb4 {[%clk 0:02:53]}  Rxa1 {[%clk 0:02:53]} 13. Qxa1 {[%clk 0:02:53]}  d5 {[%clk 0:02:52]} 14. exd5 {[%clk 0:02:48]}  Bxb4 {[%clk 0:02:53]} 15. Bd3 {[%clk 0:02:47]}  Qa5 {[%clk 0:02:26]} 16. Ke2 {[%clk 0:02:37]}  Qa6 {[%clk 0:02:02]} 17. Rd1 {[%clk 0:02:07]}  Ke7 {[%clk 0:01:50]} 18. dxe6 {[%clk 0:01:41]}  fxe6 {[%clk 0:01:51]} 19. Qc1 {[%clk 0:01:41]}  Bxc3 {[%clk 0:01:08]} 20. bxc3 {[%clk 0:01:41]}  h5 {[%clk 0:01:09]} 21. Qf4 {[%clk 0:01:34]}  Qa4 {[%clk 0:00:50]} 22. Qc7 {[%clk 0:01:20]}  Qg4+ {[%clk 0:00:41]} 23. Ke1 {[%clk 0:01:12]}  Qxg2 {[%clk 0:00:20]} 24. Qxd7+ {[%clk 0:00:57]}  Kxd7 {[%clk 0:00:18]} 25. Be4+ {[%clk 0:00:58]}  Kc7 {[%clk 0:00:18]} 26. Bxg2 {[%clk 0:00:58]}  Ra8 {[%clk 0:00:17]} 27. Rb1 {[%clk 0:00:54]}  Ra5 {[%clk 0:00:12]} 28. Rb4 {[%clk 0:00:53]}  Kb6 {[%clk 0:00:10]} 29. c4 {[%clk 0:00:52]}  Kc5 {[%clk 0:00:10]} 30. Rxb5+ {[%clk 0:00:52]}  Rxb5 {[%clk 0:00:10]} 31. cxb5 {[%clk 0:00:52]}  b6 {[%clk 0:00:09]} 32. Bc6 {[%clk 0:00:52]}  Kd4 {[%clk 0:00:09]} 33. Kd2 {[%clk 0:00:51]}  e5 {[%clk 0:00:10]} 34. h4 {[%clk 0:00:48]}  f5 {[%clk 0:00:10]} 35. Be8 {[%clk 0:00:49]}  f4 {[%clk 0:00:11]} 36. Bxh5 {[%clk 0:00:49]}  e4 {[%clk 0:00:11]} 37. f3 {[%clk 0:00:41]}  e3+ {[%clk 0:00:11]} 38. Ke2 {[%clk 0:00:41]}  Ke5 {[%clk 0:00:11]} 39. Bg6 {[%clk 0:00:37]}  Kf6 {[%clk 0:00:11]} 40. Bd3 {[%clk 0:00:36]}  Ke5 {[%clk 0:00:11]} 41. h5 {[%clk 0:00:35]}  Kf6 {[%clk 0:00:11]} 42. h6 {[%clk 0:00:34]}  Kf7 {[%clk 0:00:11]} 43. c4 {[%clk 0:00:34]}  Kf6 {[%clk 0:00:11]} 44. c5 {[%clk 0:00:34]} 1-0


[Site "https://www.chess.com"]

[Event "Titled Tuesday Blitz April 12 Early 2022"]
[White "Potapova, Margarita"]
[Black "Papadiamandis, Elliot"]
[WhiteFideId "14126869"]
[BlackFideId "36074160"]
[WhiteElo "2216"]
[BlackElo "2088"]
[Result "0-1"]
[Round "09"]
[TimeControl "180+1"]
[Date "2022.04.13"]
[WhiteClock "0:00:04"]
[BlackClock "0:00:23"]

1. d4 {[%clk 0:03:00]}  Nf6 {[%clk 0:02:55]} 2. c4 {[%clk 0:03:01]}  c6 {[%clk 0:02:52]} 3. Nf3 {[%clk 0:03:00]}  d5 {[%clk 0:02:53]} 4. g3 {[%clk 0:03:01]}  g6 {[%clk 0:02:52]} 5. Bg2 {[%clk 0:03:01]}  Bg7 {[%clk 0:02:53]} 6. O-O {[%clk 0:02:59]}  O-O {[%clk 0:02:54]} 7. b3 {[%clk 0:02:59]}  a5 {[%clk 0:02:53]} 8. Nc3 {[%clk 0:02:58]}  a4 {[%clk 0:02:52]} 9. cxd5 {[%clk 0:02:52]}  axb3 {[%clk 0:02:52]} 10. dxc6 {[%clk 0:02:48]}  Nxc6 {[%clk 0:02:52]} 11. Qxb3 {[%clk 0:02:43]}  Nxd4 {[%clk 0:02:52]} 12. Nxd4 {[%clk 0:02:44]}  Qxd4 {[%clk 0:02:52]} 13. Be3 {[%clk 0:02:39]}  Qe5 {[%clk 0:02:46]} 14. Bf4 {[%clk 0:02:37]}  Qa5 {[%clk 0:02:45]} 15. Rac1 {[%clk 0:02:27]}  Be6 {[%clk 0:02:13]} 16. Qxb7 {[%clk 0:02:25]}  Rac8 {[%clk 0:02:14]} 17. Bd2 {[%clk 0:02:08]}  Rfd8 {[%clk 0:01:59]} 18. Be1 {[%clk 0:01:25]}  Qa3 {[%clk 0:01:52]} 19. Qb1 {[%clk 0:01:04]}  Rb8 {[%clk 0:01:18]} 20. Qc2 {[%clk 0:01:04]}  Rb2 {[%clk 0:01:17]} 21. Qa4 {[%clk 0:01:04]}  Qxa4 {[%clk 0:01:14]} 22. Nxa4 {[%clk 0:01:05]}  Rxe2 {[%clk 0:01:14]} 23. Nc3 {[%clk 0:01:04]}  Rb2 {[%clk 0:01:12]} 24. a4 {[%clk 0:01:00]}  Bc4 {[%clk 0:01:12]} 25. a5 {[%clk 0:00:55]}  Bxf1 {[%clk 0:01:12]} 26. Kxf1 {[%clk 0:00:56]}  Rb3 {[%clk 0:01:05]} 27. Ra1 {[%clk 0:00:53]}  Ng4 {[%clk 0:00:54]} 28. Rb1 {[%clk 0:00:34]}  Rxb1 {[%clk 0:00:38]} 29. Nxb1 {[%clk 0:00:35]}  Bd4 {[%clk 0:00:38]} 30. Bb4 {[%clk 0:00:30]}  e5 {[%clk 0:00:36]} 31. a6 {[%clk 0:00:26]}  Nxh2+ {[%clk 0:00:34]} 32. Ke2 {[%clk 0:00:25]}  Ng4 {[%clk 0:00:35]} 33. Bc3 {[%clk 0:00:19]}  Ba7 {[%clk 0:00:31]} 34. Nd2 {[%clk 0:00:14]}  f6 {[%clk 0:00:22]} 35. Ne4 {[%clk 0:00:14]}  Kf7 {[%clk 0:00:21]} 36. Bb4 {[%clk 0:00:11]}  h6 {[%clk 0:00:17]} 37. Nd6+ {[%clk 0:00:11]}  Ke6 {[%clk 0:00:17]} 38. Nb7 {[%clk 0:00:11]}  Rc8 {[%clk 0:00:15]} 39. Bh3 {[%clk 0:00:08]}  f5 {[%clk 0:00:15]} 40. Bg2 {[%clk 0:00:08]}  e4 {[%clk 0:00:15]} 41. f3 {[%clk 0:00:07]}  exf3+ {[%clk 0:00:15]} 42. Bxf3 {[%clk 0:00:08]}  Ne5 {[%clk 0:00:16]} 43. Bg2 {[%clk 0:00:08]}  Rc4 {[%clk 0:00:16]} 44. Bd2 {[%clk 0:00:08]}  Ra4 {[%clk 0:00:16]} 45. Nd8+ {[%clk 0:00:06]}  Kd7 {[%clk 0:00:17]} 46. Nb7 {[%clk 0:00:02]}  Rxa6 {[%clk 0:00:17]} 47. Bxh6 {[%clk 0:00:02]}  Ng4 {[%clk 0:00:16]} 48. Bd2 {[%clk 0:00:02]}  Kc7 {[%clk 0:00:16]} 49. Bf4+ {[%clk 0:00:01]}  Kd7 {[%clk 0:00:17]} 50. Bd2 {[%clk 0:00:01]}  Re6+ {[%clk 0:00:16]} 51. Kd1 {[%clk 0:00:01]}  Bb6 {[%clk 0:00:17]} 52. Bf4 {[%clk 0:00:01]}  Ne3+ {[%clk 0:00:18]} 53. Bxe3 {[%clk 0:00:01]}  Rxe3 {[%clk 0:00:19]} 54. Kd2 {[%clk 0:00:01]}  Rxg3 {[%clk 0:00:19]} 55. Bd5 {[%clk 0:00:02]}  f4 {[%clk 0:00:20]} 56. Ke2 {[%clk 0:00:02]}  Re3+ {[%clk 0:00:19]} 57. Kf1 {[%clk 0:00:02]}  Rd3 {[%clk 0:00:20]} 58. Bg2 {[%clk 0:00:03]}  f3 {[%clk 0:00:19]} 59. Bh3+ {[%clk 0:00:03]}  Kc7 {[%clk 0:00:20]} 60. Bf5 {[%clk 0:00:02]}  gxf5 {[%clk 0:00:20]} 61. Nc5 {[%clk 0:00:02]}  Rd1+ {[%clk 0:00:21]} 62. Kf2 {[%clk 0:00:03]}  Bxc5+ {[%clk 0:00:21]} 63. Kxf3 {[%clk 0:00:03]}  Rd4 {[%clk 0:00:22]} 64. Kf2 {[%clk 0:00:04]}  Ra4+ {[%clk 0:00:23]} 0-1


[Site "https://www.chess.com"]

[Event "Titled Tuesday Blitz April 12 Early 2022"]
[White "Rustemov, Alexander"]
[Black "Tan, Jun Ying"]
[WhiteFideId "4119002"]
[BlackFideId "5710413"]
[WhiteElo "2809"]
[BlackElo "1827"]
[Result "0-1"]
[Round "09"]
[TimeControl "180+1"]
[Date "2022.04.12"]
[WhiteClock "0:00:01"]
[BlackClock "0:00:09"]

1. d4 {[%clk 0:03:00]}  e6 {[%clk 0:02:58]} 2. c4 {[%clk 0:03:01]}  b6 {[%clk 0:02:58]} 3. e4 {[%clk 0:03:00]}  Bb7 {[%clk 0:02:58]} 4. Bd3 {[%clk 0:03:00]}  f5 {[%clk 0:02:55]} 5. exf5 {[%clk 0:03:00]}  Bb4+ {[%clk 0:02:55]} 6. Kf1 {[%clk 0:02:58]}  Nf6 {[%clk 0:02:56]} 7. a3 {[%clk 0:02:48]}  Bd6 {[%clk 0:02:55]} 8. Nc3 {[%clk 0:02:47]}  O-O {[%clk 0:02:54]} 9. Nf3 {[%clk 0:02:38]}  Qe8 {[%clk 0:02:48]} 10. fxe6 {[%clk 0:02:35]}  dxe6 {[%clk 0:02:46]} 11. h4 {[%clk 0:02:31]}  Nbd7 {[%clk 0:02:40]} 12. Be3 {[%clk 0:02:25]}  e5 {[%clk 0:02:28]} 13. dxe5 {[%clk 0:02:08]}  Nxe5 {[%clk 0:02:28]} 14. Nxe5 {[%clk 0:01:39]}  Qxe5 {[%clk 0:02:27]} 15. Qe2 {[%clk 0:01:29]}  Ng4 {[%clk 0:02:11]} 16. Kg1 {[%clk 0:01:10]}  Nxe3 {[%clk 0:01:40]} 17. Qxe3 {[%clk 0:01:11]}  Qf6 {[%clk 0:01:24]} 18. Nd5 {[%clk 0:00:46]}  Qxb2 {[%clk 0:01:15]} 19. Rb1 {[%clk 0:00:43]}  Qe5 {[%clk 0:01:01]} 20. Qxe5 {[%clk 0:00:38]}  Bxe5 {[%clk 0:01:02]} 21. Be4 {[%clk 0:00:39]}  Kh8 {[%clk 0:00:59]} 22. h5 {[%clk 0:00:34]}  c5 {[%clk 0:00:57]} 23. Nf6 {[%clk 0:00:28]}  Rxf6 {[%clk 0:00:48]} 24. Bxb7 {[%clk 0:00:27]}  Raf8 {[%clk 0:00:45]} 25. f3 {[%clk 0:00:15]}  Bd4+ {[%clk 0:00:45]} 26. Kf1 {[%clk 0:00:14]}  Re6 {[%clk 0:00:40]} 27. Rh4 {[%clk 0:00:08]}  Re3 {[%clk 0:00:36]} 28. a4 {[%clk 0:00:06]}  Rfe8 {[%clk 0:00:33]} 29. Re4 {[%clk 0:00:06]}  R8xe4 {[%clk 0:00:31]} 30. Bxe4 {[%clk 0:00:06]}  Kg8 {[%clk 0:00:32]} 31. g4 {[%clk 0:00:06]}  h6 {[%clk 0:00:28]} 32. a5 {[%clk 0:00:06]}  bxa5 {[%clk 0:00:22]} 33. Rb7 {[%clk 0:00:05]}  a4 {[%clk 0:00:14]} 34. Rxa7 {[%clk 0:00:03]}  a3 {[%clk 0:00:14]} 35. Kg2 {[%clk 0:00:01]}  Re2+ {[%clk 0:00:11]} 36. Kg3 {[%clk 0:00:01]}  a2 {[%clk 0:00:10]} 37. Bg6 {[%clk 0:00:01]}  a1=Q {[%clk 0:00:09]} 0-1


[Site "https://www.chess.com"]

[Event "Titled Tuesday Blitz April 12 Early 2022"]
[White "Sadilek, Peter"]
[Black "Golubeva, Oksana"]
[WhiteFideId "1616439"]
[BlackFideId "4170164"]
[WhiteElo "2145"]
[BlackElo "2162"]
[Result "0-1"]
[Round "09"]
[TimeControl "180+1"]
[Date "2022.04.13"]
[WhiteClock "0:00:02"]
[BlackClock "0:00:38"]

1. d4 {[%clk 0:02:55]}  Nf6 {[%clk 0:02:59]} 2. c4 {[%clk 0:02:56]}  e6 {[%clk 0:02:59]} 3. Nf3 {[%clk 0:02:51]}  d5 {[%clk 0:02:57]} 4. Nc3 {[%clk 0:02:51]}  Bb4 {[%clk 0:02:57]} 5. Qa4+ {[%clk 0:02:49]}  Nc6 {[%clk 0:02:56]} 6. a3 {[%clk 0:02:49]}  Bxc3+ {[%clk 0:02:54]} 7. bxc3 {[%clk 0:02:50]}  O-O {[%clk 0:02:48]} 8. e3 {[%clk 0:02:33]}  Ne4 {[%clk 0:02:48]} 9. Qc2 {[%clk 0:02:32]}  b6 {[%clk 0:02:41]} 10. h4 {[%clk 0:02:32]}  Ba6 {[%clk 0:02:40]} 11. Ng5 {[%clk 0:02:31]}  Na5 {[%clk 0:02:07]} 12. Nxe4 {[%clk 0:02:27]}  dxe4 {[%clk 0:02:07]} 13. Qxe4 {[%clk 0:02:23]}  Bxc4 {[%clk 0:02:06]} 14. Bxc4 {[%clk 0:02:10]}  Nxc4 {[%clk 0:02:07]} 15. Qd3 {[%clk 0:02:10]}  b5 {[%clk 0:02:04]} 16. a4 {[%clk 0:02:10]}  a6 {[%clk 0:01:59]} 17. e4 {[%clk 0:02:09]}  c6 {[%clk 0:01:58]} 18. h5 {[%clk 0:02:04]}  e5 {[%clk 0:01:47]} 19. Qg3 {[%clk 0:01:50]}  exd4 {[%clk 0:01:42]} 20. O-O {[%clk 0:01:40]}  d3 {[%clk 0:01:28]} 21. Bh6 {[%clk 0:01:40]}  Qf6 {[%clk 0:01:27]} 22. Bg5 {[%clk 0:01:40]}  Qxc3 {[%clk 0:01:24]} 23. Rad1 {[%clk 0:01:17]}  Qe5 {[%clk 0:01:00]} 24. Bf4 {[%clk 0:00:54]}  Qxh5 {[%clk 0:00:56]} 25. Rxd3 {[%clk 0:00:55]}  Rfd8 {[%clk 0:00:55]} 26. axb5 {[%clk 0:00:51]}  axb5 {[%clk 0:00:53]} 27. Rfd1 {[%clk 0:00:40]}  Rxd3 {[%clk 0:00:46]} 28. Qxd3 {[%clk 0:00:39]}  h6 {[%clk 0:00:45]} 29. Re1 {[%clk 0:00:19]}  Qg4 {[%clk 0:00:40]} 30. Bg3 {[%clk 0:00:15]}  h5 {[%clk 0:00:39]} 31. Bh2 {[%clk 0:00:02]}  Qg5 {[%clk 0:00:38]} 0-1


[Site "https://www.chess.com"]